lending/lending_fUSD_20240703
["ID","MTS","AMOUNT","RATE_DAILY","PERIOD"]
[330994783,1719997386617,150.0,0.00011199,2]
[330994784,1719997386638,150.0,0.00011199,2]
[330994785,1719997386658,150.0,0.00011199,2]
[330994786,1719997386683,270.50127153,0.00011199,2]
[330994787,1719997386706,4415.50208866,0.00011199,2]
[330994792,1719997448283,150.0,0.00011199,2]
[330994793,1719997448310,38.31238401,0.00011199,2]
[330994794,1719997460455,1800.0,0.00011199,2]
[330994796,1719997467374,690.28734422,0.00011199,2]
[330994798,1719997508051,35584.691284,0.00011199,2]
[330994889,1719997635010,150.0,0.00011199,2]
[330994890,1719997635039,150.0,0.00011199,2]
[330994891,1719997635062,150.0,0.00011199,2]
[330994892,1719997635084,150.0,0.00011199,2]
[330994893,1719997635109,297.76917149,0.00011199,2]
[330994895,1719997635132,34686.92211251,0.00011199,2]
[330994939,1719997673817,525.285719,0.00011199,2]
[330994946,1719997705801,447.76917149,0.00011199,2]
[330994954,1719997788017,150.0,0.00011199,2]
[330994955,1719997788041,150.0,0.00011199,2]
[330994956,1719997788066,150.0,0.00011199,2]
[330994957,1719997788089,150.0,0.00011199,2]
[330994958,1719997788111,150.0,0.00011199,2]
[330994959,1719997788135,150.0,0.00011199,2]
[330994960,1719997788165,34684.691284,0.00011199,2]
[330994964,1719997810193,430.89547468,0.00011199,2]
[330994972,1719997832634,-487.85,0.00011327,2]
[330994974,1719997832644,-171.14300236,0.00011844,2]
[330994976,1719997832653,-331.84296071,0.00011944,2]
[330994978,1719997832663,-4145.27037689,0.00011944,2]
[330994980,1719997832674,-2111.14006987,0.00011944,2]
[330994982,1719997832683,-22653.35993015,0.00012273,2]
[330994984,1719997832694,-3932.12964903,0.00012273,2]
[330994986,1719997832707,-11904.00857383,0.00012273,2]
[330994988,1719997832716,-155.0,0.00012314,2]
[330994989,1719997832726,-167.59,0.0001237,2]
[330994991,1719997832735,-339.71,0.00012427,2]
[330994993,1719997832745,-150.0,0.00012459,2]
[330994995,1719997832754,-1000.0,0.00012467,2]
[330994997,1719997832764,-15343.56,0.00012473,2]
[330994999,1719997832773,-250.0,0.00012746,2]
[330995001,1719997832784,-725.9,0.00012746,2]
[330995003,1719997832793,-499.99,0.00012746,2]
[330995004,1719997832803,-2361.9,0.00012753,2]
[330995006,1719997832812,-2829.81,0.00012753,2]
[330995008,1719997832821,-299.99,0.00012753,2]
[330995010,1719997832830,-160.33,0.00012793,2]
[330995012,1719997832840,-2346.57,0.00012803,2]
[330995014,1719997832849,-1227.25,0.00012804,2]
[330995016,1719997832858,-1852.42,0.00012836,2]
[330995018,1719997832869,-160.33,0.00012876,2]
[330995019,1719997832879,-160.33,0.0001296,2]
[330995020,1719997832888,-7464.47,0.00012964,2]
[330995021,1719997832898,-250.0,0.00012964,2]
[330995022,1719997832908,-160.33,0.00013043,2]
[330995023,1719997832917,-160.33,0.00013127,2]
[330995024,1719997832926,-1245.75,0.00013177,2]
[330995025,1719997832936,-160.33,0.0001321,2]
[330995026,1719997832945,-160.33,0.00013293,2]
[330995027,1719997832956,-185.98,0.00013332,2]
[330995028,1719997832965,-160.33,0.00013377,2]
[330995029,1719997832975,-168.25,0.00013428,2]
[330995030,1719997832984,-160.33,0.0001346,2]
[330995031,1719997832993,-300.77106222,0.00013472,2]
[330995032,1719997833004,-155.61220125,0.00013516,2]
[330995033,1719997833014,-13271.715,0.00013574,2]
[330995034,1719997833023,-900.0,0.00013574,2]
[330995035,1719997833032,-35584.691284,0.00013574,2]
[330995036,1719997833041,-487.85,0.00013591,2]
[330995037,1719997833051,-191.16,0.00013699,2]
[330995038,1719997833063,-311.58,0.00013699,2]
[330995040,1719997833072,-200.0,0.00013699,2]
[330995041,1719997833081,-2001.72942077,0.00013699,2]
[330995043,1719997833093,-741.40057923,0.00013699,2]
[330995045,1719997833103,-346.44,0.00013699,2]
[330995047,1719997833112,-500.0,0.00013699,2]
[330995049,1719997833121,-173.38,0.00013712,2]
[330995051,1719997833130,-611.0,0.00013721,2]
[330995052,1719997833139,-927.77942077,0.00013849,2]
[330995055,1719997833150,-1062.45142934,0.00013849,2]
[330995057,1719997833161,-384.92168788,0.00013849,2]
[330995059,1719997833171,-207.53068889,0.00013849,2]
[330995061,1719997833179,-79.67965257,0.00013889,3]
[330995063,1719997833191,-505.95034743,0.00013889,3]
[330995065,1719997833200,-210.04595864,0.00013899,2]
[330995067,1719997833212,-293.43812873,0.00013899,2]
[330995069,1719997833223,-1882.84322713,0.00013899,2]
[330995071,1719997833234,-46020.9749855,0.00013899,2]
[330995073,1719997833243,-2910.27728991,0.00013899,2]
[330995075,1719997833255,-325.36667434,0.00013899,2]
[330995077,1719997833264,-1917.53118216,0.000139,2]
[330995079,1719997833273,-274.63400537,0.000139,2]
[330995081,1719997833282,-162.59089089,0.00013919,2]
[330995083,1719997833293,-8080.16103585,0.00013925,2]
[330995085,1719997833303,-339.71,0.0001398,2]
[330995087,1719997833312,-241.22483998,0.00013989,2]
[330995089,1719997833321,-212.65107117,0.00013989,2]
[330995091,1719997833330,-250.0,0.00013999,2]
[330995093,1719997833339,-500.0,0.00013999,2]
[330995095,1719997833348,-500.0,0.00013999,2]
[330995097,1719997833358,-303.36894325,0.00013999,2]
[330995099,1719997833367,-500.0,0.00013999,2]
[330995101,1719997833377,-32555.01495496,0.00013999,2]
[330995104,1719997833388,-311245.80941779,0.00013999,2]
[330995106,1719997833400,-285.721,0.00013999,2]
[330995177,1719997838340,-1592.53420064,0.00013999,2]
[330995180,1719997838712,-580.4,0.00013999,2]
[330995181,1719997838726,-2603.10643675,0.00013999,2]
[330995182,1719997838740,-18508.99893666,0.00013999,2]
[330995183,1719997838755,-20417.87617049,0.00013999,2]
[330995184,1719997838772,-2021.57740109,0.00013999,2]
[330995185,1719997838811,-2168.73738276,0.00013999,2]
[330995186,1719997838826,-416.89261724,0.00013999,2]
[330995187,1719997838842,-155779.93939218,0.00013999,2]
[330995188,1719997838856,-263.46776226,0.00013999,2]
[330995189,1719997838870,-1507164.18562688,0.00014,2]
[330995190,1719997838883,-1000.0,0.00014025,2]
[330995191,1719997838895,-346.44,0.00014384,2]
[330995192,1719997838906,-368.631901,0.00014521,2]
[330995193,1719997838920,-366.54684,0.0001471,2]
[330995194,1719997838936,-366.54684,0.0001471,2]
[330995195,1719997838949,-959.36863,0.0001471,2]
[330995196,1719997838963,-517.39681,0.0001473,2]
[330995197,1719997838974,-517.3968,0.0001474,2]
[330995198,1719997838986,-8080.16103584,0.0001474,2]
[330995199,1719997838999,-517.39681,0.0001477,2]
[330995200,1719997839012,-517.39681,0.0001481,2]
[330995201,1719997839025,-2910.27728989,0.00014828,2]
[330995202,1719997839038,-517.39681,0.0001485,2]
[330995203,1719997839050,-517.3968,0.0001488,2]
[330995204,1719997839064,-1917.53118207,0.00014894,2]
[330995205,1719997839077,-257.63926547,0.000149,2]
[330995206,1719997839090,-608.97213238,0.00014999,2]
[330995207,1719997839102,-500.0,0.00014999,2]
[330995208,1719997839115,-500.0,0.00014999,2]
[330995209,1719997839128,-500.0,0.00014999,2]
[330995210,1719997839141,-160.82882496,0.00014999,2]
[330995211,1719997839154,-462.33400347,0.00014999,2]
[330995212,1719997839166,-500.0,0.00014999,2]
[330995213,1719997839180,-500.0,0.00014999,2]
[330995214,1719997839193,-500.0,0.00014999,2]
[330995215,1719997839206,-500.0,0.00014999,2]
[330995216,1719997839220,-500.0,0.00014999,2]
[330995217,1719997839233,-500.0,0.00014999,2]
[330995218,1719997839246,-500.0,0.00014999,2]
[330995219,1719997839259,-333334.7537353,0.00015,2]
[330995220,1719997839271,-5000.0,0.00015,2]
[330995221,1719997839284,-823.695038,0.00015,2]
[330995222,1719997839298,-823.695038,0.00015,2]
[330995223,1719997839311,-151.0,0.00015,2]
[330995224,1719997839324,-151.0,0.00015,2]
[330995225,1719997839336,-277.494516,0.00015,2]
[330995226,1719997839349,-636.301172,0.00015,2]
[330995227,1719997839362,-151.0,0.00015,2]
[330995228,1719997839375,-277.494516,0.00015,2]
[330995229,1719997839389,-636.301172,0.00015,2]
[330995230,1719997839402,-959.36863,0.0001503,2]
[330995231,1719997839414,-300.0,0.00015068,2]
[330995232,1719997839427,-346.44,0.00015068,2]
[330995233,1719997839440,-162.59089085,0.00015327,2]
[330995234,1719997839453,-959.36864,0.0001534,2]
[330995235,1719997839466,-368.631901,0.00015342,2]
[330995236,1719997839479,-15713.54911411,0.000154,2]
[330995237,1719997839492,-339.71,0.00015534,2]
[330995238,1719997839504,-8080.16103584,0.00015555,2]
[330995239,1719997839517,-1000.0,0.00015583,2]
[330995240,1719997839531,-959.36863,0.0001565,2]
[330995241,1719997839552,-346.44,0.00015753,2]
[330995242,1719997839566,-2910.27728989,0.00015758,2]
[330995243,1719997839580,-167.0,0.00015831,2]
[330995244,1719997839594,-171.53,0.00015831,2]
[330995245,1719997839607,-487.85,0.00015855,2]
[330995246,1719997839620,-274.63400536,0.00015879,2]
[330995247,1719997839633,-1917.53118207,0.00015889,2]
[330995248,1719997839647,-959.36864,0.0001597,2]
[330995249,1719997839674,-5883.64,0.00016116,2]
[330995250,1719997839692,-325.36667431,0.00016147,2]
[330995251,1719997839709,-368.631901,0.00016164,2]
[330995252,1719997839727,-1398.36172563,0.00016172,2]
[330995253,1719997839741,-272.84712104,0.00016172,2]
[330995254,1719997839757,-959.36863,0.0001628,2]
[330995255,1719997839773,-155.0,0.00016315,2]
[330995256,1719997839789,-155.0,0.00016315,2]
[330995257,1719997839804,-167.0,0.00016354,2]
[330995258,1719997839820,-8080.16103584,0.0001637,2]
[330995259,1719997839834,-191.16,0.00016438,2]
[330995260,1719997839848,-300.0,0.00016438,2]
[330995261,1719997839863,-346.44,0.00016438,2]
[330995262,1719997839879,-1763.56344644,0.00016566,2]
[330995263,1719997839893,-2910.27728989,0.00016687,2]
[330995264,1719997839908,-186.05,0.00016712,2]
[330995265,1719997839922,-162.59089085,0.00016735,2]
[330995266,1719997839936,-167.0,0.00016876,2]
[330995267,1719997839950,-1917.53118207,0.00016883,2]
[330995268,1719997839967,-209.0,0.0001696,2]
[330995269,1719997839981,-368.631901,0.00016986,2]
[330995270,1719997839994,-339.71,0.00017087,2]
[330995271,1719997840009,-1000.0,0.00017142,2]
[330995272,1719997840022,-8080.16103584,0.00017185,2]
[330995273,1719997840036,-158.72665019,0.00017253,2]
[330995274,1719997840049,-500.0,0.0001726,2]
[330995275,1719997840061,-500.0,0.0001726,2]
[330995276,1719997840073,-500.0,0.0001726,2]
[330995277,1719997840086,-513.18694923,0.0001726,2]
[330995278,1719997840098,-500.0,0.0001726,2]
[330995279,1719997840110,-209.0,0.0001737,2]
[330995280,1719997840123,-167.0,0.00017399,2]
[330995281,1719997840140,-2910.27728989,0.00017616,2]
[330995282,1719997840159,-209.0,0.0001777,2]
[330995283,1719997840173,-368.631901,0.00017808,2]
[330995284,1719997840189,-274.63400536,0.00017859,2]
[330995285,1719997840205,-1917.53118207,0.00017877,2]
[330995286,1719997840224,-167.0,0.00017921,2]
[330995287,1719997840239,-192.0797515,0.00018,2]
[330995288,1719997840252,-8080.16103584,0.00018,2]
[330995289,1719997840268,-487.85,0.00018119,2]
[330995290,1719997840282,-162.59089085,0.00018143,2]
[330995291,1719997840297,-209.0,0.0001818,2]
[330995292,1719997840310,-977.0,0.00018244,2]
[330995293,1719997840324,-503.98333009,0.00018356,2]
[330995294,1719997840337,-500.0,0.00018356,2]
[330995295,1719997840350,-325.36667431,0.00018395,2]
[330995296,1719997840364,-167.0,0.00018444,2]
[330995297,1719997840376,-171.53,0.00018444,2]
[330995298,1719997840390,-257.63926545,0.0001845,2]
[330995299,1719997840403,-2910.27728989,0.00018546,2]
[330995300,1719997840416,-209.0,0.0001858,2]
[330995301,1719997840430,-368.631901,0.0001863,2]
[330995302,1719997840443,-339.71,0.00018641,2]
[330995303,1719997840456,-1000.0,0.000187,2]
[330995304,1719997840473,-8080.16103584,0.00018815,2]
[330995305,1719997840486,-1917.53118207,0.00018872,2]
[330995306,1719997840500,-151.26,0.000189,2]
[330995307,1719997840514,-151.26,0.000189,2]
[330995308,1719997840528,-151.26,0.000189,2]
[330995309,1719997840548,-151.26,0.000189,2]
[330995310,1719997840561,-151.26,0.000189,2]
[330995311,1719997840576,-151.26,0.000189,2]
[330995312,1719997840589,-151.26,0.000189,2]
[330995313,1719997840603,-151.26,0.000189,2]
[330995314,1719997840619,-151.26,0.000189,2]
[330995315,1719997840637,-151.26,0.000189,2]
[330995316,1719997840651,-151.26,0.000189,2]
[330995317,1719997840663,-151.26,0.000189,2]
[330995318,1719997840676,-151.26,0.000189,2]
[330995319,1719997840690,-151.26,0.000189,2]
[330995320,1719997840702,-151.26,0.000189,2]
[330995321,1719997840719,-151.26,0.000189,2]
[330995322,1719997840733,-151.26,0.000189,2]
[330995323,1719997840746,-151.26,0.000189,2]
[330995324,1719997840759,-151.26,0.000189,2]
[330995325,1719997840772,-151.26,0.000189,2]
[330995326,1719997840783,-151.26,0.000189,2]
[330995327,1719997840793,-151.26,0.000189,2]
[330995328,1719997840804,-151.26,0.000189,2]
[330995329,1719997841164,-151.26,0.000189,2]
[330995330,1719997841184,-151.26,0.000189,2]
[330995331,1719997841194,-151.26,0.000189,2]
[330995332,1719997841203,-151.26,0.000189,2]
[330995333,1719997841214,-151.26,0.000189,2]
[330995334,1719997841223,-209.0,0.0001899,2]
[330995335,1719997841232,-155.1650936,0.00019,2]
[330995336,1719997841243,-1250.0,0.00019,2]
[330995337,1719997841252,-155.34957523,0.00019,2]
[330995338,1719997841262,-300.0,0.00019,2]
[330995339,1719997841272,-370.27430286,0.00019069,2]
[330995340,1719997841281,-311.58,0.00019178,2]
[330995341,1719997841291,-250.0,0.00019178,2]
[330995342,1719997841302,-5408.78,0.00019178,2]
[330995343,1719997841312,-368.71565506,0.00019229,2]
[330995344,1719997841322,-209.0,0.0001939,2]
[330995345,1719997841332,-368.631901,0.00019452,2]
[330995346,1719997841342,-151.26,0.00019465,2]
[330995347,1719997841352,-2910.27728989,0.00019475,2]
[330995348,1719997841362,-1250.0,0.000195,2]
[330995349,1719997841371,-162.59089085,0.0001955,2]
[330995350,1719997841381,-8080.16103584,0.0001963,2]
[330995351,1719997841392,-209.0,0.000198,2]
[330995352,1719997841402,-274.63400536,0.00019838,2]
[330995353,1719997841412,-536.46036163,0.00019863,2]
[330995354,1719997841421,-1917.53118207,0.00019866,2]
[330995355,1719997841431,-351.73949547,0.00019964,2]
[330995356,1719997841440,-155.0,0.00019964,2]
[330995357,1719997841450,-272.11678812,0.00019964,2]
[330995358,1719997841461,-185.98,0.00019998,2]
[330995359,1719997841470,-3172.88245229,0.0002,2]
[330995360,1719997841479,-867.82451069,0.0002,2]
[330995361,1719997841488,-6279.51081998,0.0002,2]
[330995362,1719997841498,-188.00153338,0.0002,2]
[330995363,1719997841508,-327.27195084,0.0002,2]
[330995364,1719997841518,-155.0,0.0002,2]
[330995365,1719997841541,-1274.88625925,0.0002,2]
[330995366,1719997841552,-4006.0,0.000201,4]
[330995367,1719997841562,-168.25,0.00020142,2]
[330995368,1719997841572,-209.0,0.000202,2]
[330995369,1719997841587,-368.631901,0.00020274,2]
[330995370,1719997841596,-487.85,0.00020383,2]
[330995371,1719997841606,-10000.0,0.00020399,2]
[330995372,1719997841617,-2910.27728989,0.00020404,2]
[330995373,1719997841627,-19867.25574852,0.00020418,2]
[330995374,1719997841638,-209.0,0.0002061,2]
[330995375,1719997841649,-325.36667431,0.00020642,2]
[330995376,1719997841660,-156.05809953,0.00020677,2]
[330995377,1719997841671,-174.637467,0.00020721,2]
[330995378,1719997841681,-156.05809953,0.00020742,2]
[330995379,1719997841691,-156.05809953,0.00020783,2]
[330995380,1719997841702,-159.96560321,0.00020793,2]
[330995381,1719997841715,-2414.0,0.00020856,2]
[330995382,1719997841724,-150.0,0.00020856,2]
[330995383,1719997841734,-1987.0,0.00020856,2]
[330995384,1719997841744,-3206.0,0.00020856,2]
[330995385,1719997841755,-548.0,0.00020856,2]
[330995386,1719997841765,-175.775,0.00020856,2]
[330995387,1719997841775,-1662.0,0.00020856,2]
[330995388,1719997841785,-1917.53118207,0.0002086,2]
[330995389,1719997841796,-156.05809953,0.00020873,2]
[330995390,1719997841806,-171.2311072,0.000209,2]
[330995391,1719997841816,-156.05809953,0.00020944,2]
[330995392,1719997841827,-162.59089085,0.00020958,2]
[330995393,1719997841837,-158.78309842,0.00020977,2]
[330995394,1719997841847,-151.26,0.0002099,2]
[330995395,1719997841858,-225.19167095,0.00021,2]
[330995396,1719997841870,-13504.0,0.00021,4]
[330995397,1719997841881,-1300.0,0.00021,2]
[330995398,1719997841894,-151.0,0.00021,2]
[330995399,1719997841904,-241.568111,0.00021,2]
[330995400,1719997841914,-151.0,0.00021,2]
[330995401,1719997841923,-241.568111,0.00021,2]
[330995402,1719997841933,-151.0,0.00021,2]
[330995403,1719997841943,-151.0,0.00021,2]
[330995404,1719997841952,-151.0,0.00021,2]
[330995405,1719997841964,-151.0,0.00021,2]
[330995406,1719997841973,-151.0,0.00021,2]
[330995407,1719997841982,-275.230491,0.00021,2]
[330995408,1719997841992,-151.0,0.00021,2]
[330995409,1719997842002,-161.217708,0.00021,2]
[330995410,1719997842012,-161.217708,0.00021,2]
[330995411,1719997842022,-151.0,0.00021,2]
[330995412,1719997842032,-151.0,0.00021,2]
[330995413,1719997842041,-151.0,0.00021,2]
[330995414,1719997842052,-151.0,0.00021,2]
[330995415,1719997842062,-151.0,0.00021,2]
[330995416,1719997842073,-1993.25115,0.00021,2]
[330995417,1719997842084,-1993.25115,0.00021,2]
[330995418,1719997842094,-151.0,0.00021,2]
[330995419,1719997842106,-151.0,0.00021,2]
[330995420,1719997842117,-151.0,0.00021,2]
[330995421,1719997842128,-151.0,0.00021,2]
[330995422,1719997842139,-489.790926,0.00021,2]
[330995423,1719997842150,-151.0,0.00021,2]
[330995424,1719997842161,-151.0,0.00021,2]
[330995425,1719997842171,-489.790926,0.00021,2]
[330995426,1719997842182,-151.0,0.00021,2]
[330995427,1719997842192,-151.0,0.00021,2]
[330995428,1719997842203,-151.0,0.00021,2]
[330995429,1719997842215,-151.0,0.00021,2]
[330995430,1719997842229,-151.0,0.00021,2]
[330995431,1719997842239,-151.0,0.00021,2]
[330995432,1719997842249,-151.0,0.00021,2]
[330995433,1719997842259,-151.0,0.00021,2]
[330995434,1719997842269,-151.0,0.00021,2]
[330995435,1719997842280,-151.0,0.00021,2]
[330995436,1719997842290,-151.0,0.00021,2]
[330995437,1719997842300,-151.0,0.00021,2]
[330995438,1719997842310,-151.0,0.00021,2]
[330995439,1719997842321,-151.0,0.00021,2]
[330995440,1719997842331,-151.0,0.00021,2]
[330995441,1719997842342,-7519.139888,0.00021,2]
[330995442,1719997842353,-151.0,0.00021,2]
[330995443,1719997842364,-7519.139888,0.00021,2]
[330995444,1719997842374,-414.313561,0.00021,2]
[330995445,1719997842385,-151.0,0.00021,2]
[330995446,1719997842396,-151.0,0.00021,2]
[330995447,1719997842406,-151.0,0.00021,2]
[330995448,1719997842416,-414.313561,0.00021,2]
[330995449,1719997842427,-240.51048,0.00021,2]
[330995450,1719997842437,-151.40052,0.00021,2]
[330995451,1719997842447,-151.544884,0.00021,2]
[330995452,1719997842457,-151.0,0.00021,2]
[330995453,1719997842469,-151.0,0.00021,2]
[330995454,1719997842479,-151.0,0.00021,2]
[330995455,1719997842489,-151.0,0.00021,2]
[330995456,1719997842498,-151.0,0.00021,2]
[330995457,1719997842508,-151.0,0.00021,2]
[330995458,1719997842518,-290.48543,0.00021,2]
[330995459,1719997842529,-151.0,0.00021,2]
[330995460,1719997842541,-151.0,0.00021,2]
[330995461,1719997842551,-151.0,0.00021,2]
[330995463,1719997842561,-151.0,0.00021,2]
[330995465,1719997842572,-152.23958,0.00021,2]
[330995467,1719997842583,-151.0,0.00021,2]
[330995468,1719997842595,-151.0,0.00021,2]
[330995469,1719997842605,-823.695038,0.00021,2]
[330995470,1719997842615,-823.695038,0.00021,2]
[330995471,1719997842626,-151.0,0.00021,2]
[330995472,1719997842636,-151.0,0.00021,2]
[330995473,1719997842646,-151.0,0.00021,2]
[330995474,1719997842656,-277.494516,0.00021,2]
[330995475,1719997842667,-636.301172,0.00021,2]
[330995476,1719997842677,-151.0,0.00021,2]
[330995477,1719997842688,-277.494516,0.00021,2]
[330995478,1719997842698,-636.301172,0.00021,2]
[330995479,1719997842708,-209.0,0.0002101,2]
[330995480,1719997842720,-158.78309842,0.00021058,2]
[330995481,1719997842730,-158.78309842,0.00021059,2]
[330995483,1719997842739,-303.55,0.00021063,2]
[330995485,1719997842750,-419.0,0.00021068,2]
[330995487,1719997842760,-854.06,0.00021068,2]
[330995489,1719997842770,-854.06,0.00021068,2]
[330995491,1719997842780,-419.0,0.00021068,2]
[330995493,1719997842790,-854.06,0.00021068,2]
[330995495,1719997842801,-419.0,0.00021068,2]
[330995497,1719997842812,-419.0,0.00021068,2]
[330995499,1719997842823,-854.06,0.00021068,2]
[330995501,1719997842833,-854.06,0.00021068,2]
[330995503,1719997842842,-419.0,0.00021068,2]
[330995505,1719997842852,-419.0,0.00021068,2]
[330995507,1719997842862,-854.06,0.00021068,2]
[330995509,1719997842873,-419.0,0.00021068,2]
[330995511,1719997842883,-854.06,0.00021068,2]
[330995512,1719997842893,-419.0,0.00021068,2]
[330995513,1719997842903,-1000.0,0.000211,2]
[330995516,1719997842917,-155.04457594,0.00021155,2]
[330995517,1719997842927,-151.26,0.00021226,2]
[330995519,1719997842937,-151.0,0.00021236,2]
[330995521,1719997842946,-151.0,0.00021236,2]
[330995523,1719997842957,-193.471238,0.00021236,2]
[330995525,1719997842968,-193.471238,0.00021236,2]
[330995527,1719997842977,-151.0,0.00021236,2]
[330995529,1719997842986,-151.0,0.00021236,2]
[330995531,1719997842996,-151.0,0.00021236,2]
[330995533,1719997843006,-151.0,0.00021236,2]
[330995535,1719997843016,-151.0,0.00021236,2]
[330995537,1719997843025,-200.203589,0.00021236,2]
[330995539,1719997843038,-200.203589,0.00021236,2]
[330995541,1719997843048,-151.0,0.00021236,2]
[330995543,1719997843058,-151.0,0.00021236,2]
[330995545,1719997843068,-164.830753,0.00021236,2]
[330995547,1719997843077,-164.830753,0.00021236,2]
[330995549,1719997843088,-151.0,0.00021236,2]
[330995551,1719997843098,-152.45,0.00021236,2]
[330995552,1719997843108,-152.45,0.00021236,2]
[330995554,1719997843119,-151.0,0.00021236,2]
[330995556,1719997843129,-154.853369,0.00021236,2]
[330995558,1719997843139,-154.853369,0.00021236,2]
[330995560,1719997843148,-151.0,0.00021236,2]
[330995562,1719997843158,-151.0,0.00021236,2]
[330995564,1719997843168,-151.0,0.00021236,2]
[330995566,1719997843178,-151.0,0.00021236,2]
[330995568,1719997843188,-151.0,0.00021236,2]
[330995570,1719997843197,-151.0,0.00021236,2]
[330995572,1719997843208,-152.171506,0.00021236,2]
[330995574,1719997843221,-381.999411,0.00021236,2]
[330995576,1719997843232,-381.999411,0.00021236,2]
[330995579,1719997843242,-269.412722,0.00021236,2]
[330995583,1719997843255,-207.392734,0.00021236,2]
[330995589,1719997843265,-151.0,0.00021236,2]
[330995595,1719997843275,-269.412722,0.00021236,2]
[330995600,1719997843284,-207.392734,0.00021236,2]
[330995604,1719997843294,-151.0,0.00021236,2]
[330995608,1719997843304,-151.0,0.00021236,2]
[330995611,1719997843314,-151.0,0.00021236,2]
[330995614,1719997843324,-151.0,0.00021236,2]
[330995617,1719997843335,-151.0,0.00021236,2]
[330995620,1719997843347,-151.0,0.00021236,2]
[330995623,1719997843359,-218.99184,0.00021236,2]
[330995626,1719997843370,-218.99184,0.00021236,2]
[330995628,1719997843381,-151.0,0.00021236,2]
[330995630,1719997843392,-151.51029,0.00021236,2]
[330995632,1719997843403,-401.572545,0.00021236,2]
[330995634,1719997843413,-151.0,0.00021236,2]
[330995636,1719997843424,-401.572545,0.00021236,2]
[330995638,1719997843435,-151.0,0.00021236,2]
[330995639,1719997843445,-151.0,0.00021236,2]
[330995641,1719997843455,-273.451117,0.00021236,2]
[330995643,1719997843470,-273.451117,0.00021236,2]
[330995644,1719997843480,-2842.563317,0.00021236,2]
[330995645,1719997843491,-151.0,0.00021236,2]
[330995646,1719997843502,-2842.563317,0.00021236,2]
[330995647,1719997843514,-151.0,0.00021236,2]
[330995648,1719997843527,-151.0,0.00021236,2]
[330995649,1719997843546,-151.0,0.00021236,2]
[330995650,1719997843556,-151.0,0.00021236,2]
[330995651,1719997843567,-151.0,0.00021236,2]
[330995652,1719997843579,-250.600255,0.00021236,2]
[330995653,1719997843589,-194.09154,0.00021236,2]
[330995654,1719997843599,-194.09154,0.00021236,2]
[330995655,1719997843609,-151.0,0.00021236,2]
[330995656,1719997843619,-154.555,0.00021236,2]
[330995657,1719997843629,-259.95,0.00021236,2]
[330995658,1719997843639,-360.0,0.00021236,2]
[330995660,1719997843649,-1820.0,0.00021236,2]
[330995661,1719997843659,-1275.0,0.00021236,2]
[330995662,1719997843669,-1658.0,0.00021236,2]
[330995663,1719997843679,-167.004,0.00021236,2]
[330995664,1719997843689,-451.146,0.00021236,2]
[330995665,1719997843700,-443.0,0.00021236,2]
[330995666,1719997843711,-622.944,0.00021236,2]
[330995667,1719997843724,-820.232,0.00021236,2]
[330995668,1719997843735,-1304.0,0.00021236,2]